bitfinex/quotes_BTCUSD_20240908
["timestamp","ask_amount","ask_price","bid_price","bid_amount"]
[1725805108892,0.184993,54350.0,54349.0,0.04047848]
[1725805109128,0.551988,54349.0,54348.0,0.047]
[1725805109385,0.183996,54349.0,54348.0,0.036]
[1725805109607,0.183996,54349.0,54348.0,0.023]
[1725805109826,0.184996,54349.0,54348.0,0.011]
[1725805110064,0.184996,54349.0,54348.0,0.034]
[1725805110275,0.183996,54349.0,54348.0,0.023]
[1725805110492,0.183996,54349.0,54347.0,0.023]
[1725805110717,0.184996,54349.0,54348.0,0.021]
[1725805110919,0.184996,54349.0,54348.0,0.034]
[1725805111286,0.184996,54349.0,54348.0,0.045]
[1725805111490,0.183996,54349.0,54348.0,0.034]
[1725805112958,0.184996,54349.0,54348.0,0.034]
[1725805113307,0.183996,54349.0,54348.0,0.034]
[1725805113509,0.183996,54349.0,54348.0,0.0704805]
[1725805113724,0.184996,54349.0,54348.0,0.0814805]
[1725805114781,0.552988,54349.0,54348.0,0.045]
[1725805114992,0.92098,54349.0,54348.0,0.022]
[1725805115405,1.288972,54349.0,54348.0,0.022]
[1725805115637,1.4714584,54349.0,54348.0,0.022]
[1725805115841,1.388972,54349.0,54348.0,0.022]
[1725805116066,1.4714584,54349.0,54348.0,0.022]
[1725805116381,1.387972,54349.0,54348.0,0.011]
[1725805116586,1.69368325,54349.0,54348.0,0.011]
[1725805116786,1.69340973,54349.0,54348.0,0.014]
[1725805117197,2.27968359,54349.0,54348.0,0.011]
[1725805117402,0.92013,54340.0,54339.0,0.00163]
[1725805117702,1.08342102,54340.0,54339.0,0.00163]
[1725805118040,1.55147302,54340.0,54339.0,0.00163]
[1725805118246,1.496482,54340.0,54339.0,0.00163]
[1725805118698,1.420282,54340.0,54339.0,0.00163]
[1725805119599,1.47526643,54340.0,54339.0,0.00163]
[1725805120245,1.424282,54340.0,54339.0,0.00163]
[1725805120458,1.47926506,54340.0,54339.0,0.00163]
[1725805121299,1.02813,54340.0,54339.0,0.00163]
[1725805121529,0.008,54340.0,54339.0,0.07673]
[1725805121742,0.008,54340.0,54339.0,0.1141658]
[1725805121957,0.012,54340.0,54339.0,0.00163]
[1725805122185,1.38266853,54340.0,54339.0,0.00163]
[1725805122418,1.47466853,54340.0,54339.0,0.00163]
[1725805122644,1.47066853,54340.0,54339.0,0.00563]
[1725805123069,1.50003068,54340.0,54339.0,0.00563]
[1725805123351,1.41754415,54340.0,54339.0,0.00563]
[1725805123565,1.49701209,54340.0,54339.0,0.00563]
[1725805123774,1.50001209,54340.0,54339.0,0.00563]
[1725805123974,1.50001209,54340.0,54339.0,0.00163]
[1725805124219,1.50101209,54340.0,54339.0,0.00163]
[1725805124668,1.50001209,54340.0,54339.0,0.00163]
[1725805124891,1.50401209,54340.0,54339.0,0.00163]
[1725805126249,1.50101209,54340.0,54339.0,0.00163]
[1725805126463,1.47664994,54340.0,54339.0,0.00163]
[1725805126686,1.02613,54340.0,54339.0,0.06763]
[1725805127161,1.02213,54340.0,54339.0,0.06763]
[1725805127604,0.652078,54340.0,54339.0,0.06763]
[1725805127817,0.654078,54340.0,54339.0,0.14273]
[1725805128041,0.654078,54340.0,54339.0,0.14473]
[1725805128247,0.654078,54340.0,54339.0,0.14273]
[1725805128501,0.286026,54340.0,54339.0,0.14273]
[1725805128745,0.654078,54340.0,54339.0,0.14573]
[1725805128951,0.654078,54340.0,54339.0,0.14273]
[1725805128952,0.186026,54340.0,54339.0,0.14273]
[1725805129594,0.184026,54340.0,54339.0,0.14273]
[1725805129794,0.184021,54342.0,54339.0,0.3595989]
[1725805130018,0.184021,54342.0,54340.0,0.023]
[1725805130665,0.184021,54342.0,54340.0,0.022]
[1725805131087,0.184021,54342.0,54340.0,0.021]
[1725805131345,0.368012,54346.0,54341.0,0.04002299]
[1725805131551,0.001,54342.0,54341.0,0.04002299]
[1725805131767,0.001,54342.0,54341.0,0.18112299]
[1725805132463,0.002,54342.0,54341.0,0.18112299]
[1725805132901,0.001,54342.0,54341.0,0.18112299]
[1725805133106,0.001,54342.0,54341.0,0.20412299]
[1725805133318,0.001,54342.0,54341.0,0.39614599]
[1725805133559,0.001,54342.0,54341.0,0.76419199]
[1725805133771,0.001,54342.0,54341.0,0.76719199]
[1725805134637,0.001,54342.0,54341.0,0.76419199]
[1725805134912,0.001,54342.0,54341.0,0.77219199]
[1725805136041,0.185019,54342.0,54341.0,0.22012299]
[1725805136265,0.185019,54342.0,54341.0,0.1801]
[1725805136515,0.185019,54342.0,54341.0,0.039]
[1725805136757,0.921097,54342.0,54341.0,0.016]
[1725805136988,1.34409902,54342.0,54341.0,0.016]
[1725805137228,1.289136,54342.0,54341.0,0.016]
[1725805137468,1.7938604,54342.0,54341.0,0.016]
[1725805137912,1.90384244,54342.0,54341.0,0.016]
[1725805138139,1.93029774,54342.0,54341.0,0.016]
[1725805138377,1.93029774,54342.0,54341.0,0.008]
[1725805138378,1.92929774,54342.0,54341.0,0.008]
[1725805138588,2.1873547,54342.0,54341.0,0.008]
[1725805138864,2.1903547,54342.0,54341.0,0.008]
[1725805139321,2.2194547,54342.0,54341.0,0.008]
[1725805139540,2.2224547,54342.0,54341.0,0.008]
[1725805139971,1.288182,54340.0,54339.0,0.00163]
[1725805140176,1.388182,54340.0,54339.0,0.00163]
[1725805140663,1.47068792,54340.0,54339.0,0.00163]
[1725805141099,1.388182,54340.0,54339.0,0.00163]
[1725805141373,2.29825996,54340.0,54339.0,0.00163]
[1725805141598,2.16076507,54340.0,54339.0,0.00163]
[1725805141818,2.15751053,54340.0,54339.0,0.00163]
[1725805142033,2.15951053,54340.0,54339.0,0.00163]
[1725805142248,2.55966253,54340.0,54339.0,0.00163]
[1725805142498,2.97675376,54340.0,54339.0,0.00163]
[1725805142733,2.97875376,54340.0,54339.0,0.00163]
[1725805143169,2.97675376,54340.0,54339.0,0.00163]
[1725805143596,3.15161627,54340.0,54339.0,0.00263]
[1725805144231,3.14961627,54340.0,54339.0,0.00263]
[1725805144447,3.15861627,54340.0,54339.0,0.00363]
[1725805144662,2.75152504,54340.0,54339.0,0.00363]
[1725805144864,2.73952504,54340.0,54339.0,0.00263]
[1725805145165,2.75352504,54340.0,54339.0,0.00263]
[1725805145395,2.75552504,54340.0,54339.0,0.00263]
[1725805145603,1.28842,54330.0,54320.0,0.69560836]
[1725805145823,1.38842,54330.0,54320.0,0.69560836]
[1725805146033,1.38842,54330.0,54320.0,0.1413]
[1725805148270,1.75654,54330.0,54320.0,0.1413]
[1725805148475,1.75754,54330.0,54320.0,0.1413]
[1725805148683,1.83886105,54330.0,54320.0,0.1413]
[1725805148886,1.8663476,54330.0,54320.0,0.1413]
[1725805149111,1.9753476,54330.0,54317.0,0.0662]
[1725805149309,1.9753476,54330.0,54308.0,0.001628]
[1725805149310,2.66648685,54330.0,54329.0,1e-06]
[1725805149824,2.66648685,54330.0,54308.0,0.001628]
[1725805149825,0.183497,54319.0,54308.0,0.001628]
[1725805150063,1.396982,54319.0,54308.0,0.001628]
[1725805150346,3.14854295,54319.0,54308.0,0.001628]
[1725805150561,2.61063714,54319.0,54308.0,0.001628]
[1725805150813,2.77458542,54319.0,54308.0,0.001628]
[1725805151047,2.77658542,54319.0,54308.0,0.001628]
[1725805151298,3.14468042,54319.0,54318.0,6.2e-07]
[1725805151540,3.14468042,54319.0,54308.0,1e-06]
[1725805151541,2.144246,54309.0,54308.0,1e-06]
[1725805151776,2.143946,54309.0,54308.0,1e-06]
[1725805152029,2.58434899,54309.0,54308.0,1e-06]
[1725805152263,2.58414899,54309.0,54308.0,1e-06]
[1725805152503,2.61301648,54309.0,54308.0,1e-06]
[1725805152976,2.61101648,54309.0,54308.0,1e-06]
[1725805153208,2.61301648,54309.0,54308.0,1e-06]
[1725805153684,2.74979816,54309.0,54308.0,1e-06]
[1725805153942,2.76379816,54309.0,54308.0,1e-06]
[1725805154591,2.62701648,54309.0,54308.0,1e-06]
[1725805154831,2.73633051,54309.0,54308.0,1e-06]
[1725805155297,2.75033051,54309.0,54308.0,1e-06]
[1725805155531,2.75029316,54309.0,54308.0,1e-06]
[1725805155767,2.73301821,54309.0,54308.0,1e-06]
[1725805156252,2.71901821,54309.0,54308.0,1e-06]
[1725805156734,2.38454164,54309.0,54308.0,1e-06]
[1725805156964,2.37054164,54309.0,54308.0,1e-06]
[1725805157467,2.38454164,54309.0,54308.0,1e-06]
[1725805157714,2.28861349,54309.0,54308.0,1e-06]
[1725805157956,1.289253,54295.0,54294.0,0.0751]
[1725805158208,1.389253,54295.0,54294.0,0.0751]
[1725805159109,1.289393,54289.0,54288.0,0.0662]
[1725805159558,1.289393,54289.0,54288.0,0.1413]
[1725805161099,1.290393,54289.0,54288.0,0.1413]
[1725805162054,1.291393,54289.0,54288.0,0.1413]
[1725805164740,0.554597,54289.0,54288.0,0.180546]
[1725805165936,0.02886919,54297.0,54288.0,0.180546]
[1725805166151,0.368323,54301.0,54294.0,0.0613]
[1725805166360,0.368323,54301.0,54291.0,0.16677185]
[1725805166361,0.368343,54298.0,54291.0,0.16677185]
[1725805166578,0.368343,54298.0,54296.0,0.1364]
[1725805166792,0.184174,54297.0,54296.0,0.1364]
[1725805167028,0.184174,54297.0,54296.0,0.1594]
[1725805167237,0.187174,54297.0,54296.0,0.1594]
[1725805167675,0.184168,54298.0,54297.0,0.1364]
[1725805167890,0.184168,54298.0,54297.0,0.17534]
[1725805168112,0.185168,54298.0,54297.0,0.17534]
[1725805168324,0.184168,54298.0,54297.0,0.17534]
[1725805169237,0.184168,54299.0,54298.0,0.0751]
[1725805169525,0.368313,54302.0,54298.0,0.0981]
[1725805169730,0.184165,54299.0,54298.0,0.1344]
[1725805169940,0.184165,54299.0,54298.0,0.175834]
[1725805170382,0.368313,54302.0,54298.0,0.102734]
[1725805170599,0.184158,54301.0,54299.0,0.023]
[1725805170809,0.184162,54300.0,54299.0,0.023]
[1725805171030,0.184162,54300.0,54299.0,0.022]
[1725805172529,0.184162,54300.0,54299.0,0.021]
[1725805173099,0.184162,54300.0,54299.0,0.0508912]
[1725805173329,0.185162,54300.0,54299.0,0.1018]
[1725805173739,0.186162,54300.0,54299.0,0.1048]
[1725805175027,0.186162,54300.0,54299.0,0.1679]
[1725805175437,0.002,54300.0,54299.0,0.1679]
[1725805175639,0.186162,54300.0,54299.0,0.1679]
[1725805176038,0.186162,54300.0,54299.0,0.2049509]
[1725805176480,0.002,54300.0,54299.0,0.2049509]
[1725805177204,0.002,54300.0,54299.0,0.761129]
[1725805177421,0.002,54300.0,54299.0,0.7574459]
[1725805177857,0.002815,54300.0,54299.0,1.1257759]
[1725805179159,0.002815,54300.0,54299.0,1.66087775]
[1725805179380,0.11928562,54315.0,54308.0,0.1399]
[1725805179593,0.36824,54313.0,54309.0,0.0554035]
[1725805179806,0.184128,54310.0,54309.0,0.0554035]
[1725805180011,0.284128,54310.0,54309.0,0.0554035]
[1725805180248,0.1,54310.0,54309.0,0.0554035]
[1725805181133,0.101,54310.0,54309.0,0.0584035]
[1725805181344,0.1,54310.0,54309.0,0.0554035]
[1725805181978,0.1,54311.0,54309.0,0.1953035]
[1725805182211,0.1,54311.0,54310.0,0.03694365]
[1725805182425,0.184113,54315.0,54311.0,0.184122]
[1725805182641,0.1,54314.0,54312.0,0.1629]
[1725805182850,0.1,54315.0,54313.0,0.04433692]
[1725805183071,0.1,54315.0,54314.0,0.023]
[1725805183297,0.1,54315.0,54314.0,0.207114]
[1725805183512,0.184098,54319.0,54314.0,0.270213]
[1725805183717,0.184098,54319.0,54315.0,0.10410329]
[1725805183931,0.184098,54319.0,54316.0,0.023]
[1725805184375,0.184098,54319.0,54316.0,0.022]
[1725805184595,0.284102,54318.0,54316.0,0.021]
[1725805185065,0.284102,54318.0,54315.0,0.003]
[1725805185291,0.284102,54318.0,54314.0,0.247213]
[1725805185463,0.284102,54318.0,54316.0,0.003]
[1725805185915,0.284102,54318.0,54317.0,0.0768]
[1725805186363,0.285102,54318.0,54317.0,0.0768]
[1725805187009,0.653304,54318.0,54317.0,0.0998]
[1725805187229,0.653304,54318.0,54315.0,0.007]
[1725805187230,0.920537,54316.0,54315.0,0.007]
[1725805187685,0.0788,54315.0,54303.0,0.5307]
[1725805187900,0.184148,54304.0,54303.0,0.5307]
[1725805188146,0.184144,54306.0,54303.0,0.0631]
[1725805188362,0.184148,54304.0,54303.0,0.0631]
[1725805188574,0.368291,54305.0,54303.0,0.07709]
[1725805188575,0.184145,54305.0,54303.0,0.07709]
[1725805188792,0.184145,54305.0,54304.0,0.023]
[1725805190070,0.000815,54305.0,54304.0,0.023]
[1725805190287,0.000815,54305.0,54304.0,0.022]
[1725805190903,0.001815,54305.0,54304.0,0.034]
[1725805191412,0.001815,54305.0,54304.0,0.033]
[1725805192592,0.001815,54305.0,54304.0,0.043]
[1725805192807,0.002815,54305.0,54304.0,0.7784487]
[1725805193036,0.002815,54305.0,54304.0,0.741344]
[1725805193724,0.002815,54305.0,54304.0,1.10964]
[1725805194579,0.002815,54305.0,54304.0,0.1889]
[1725805195435,0.55525,54305.0,54304.0,0.1889]
[1725805195642,0.18696,54305.0,54304.0,0.1889]
[1725805196310,0.002815,54305.0,54304.0,0.263038]
[1725805198336,0.002815,54305.0,54304.0,1.183778]
[1725805198583,0.002815,54305.0,54304.0,1.72884585]
[1725805199268,0.001815,54305.0,54304.0,1.71884585]
[1725805200228,0.000815,54305.0,54304.0,1.70684585]
[1725805200472,0.000815,54305.0,54304.0,1.72084585]
[1725805201361,0.000815,54305.0,54304.0,2.22084585]
[1725805201576,0.000815,54305.0,54304.0,2.22284585]
[1725805201806,0.000815,54305.0,54304.0,2.23684585]
[1725805202039,0.000815,54305.0,54304.0,2.22084585]
[1725805202515,0.000815,54305.0,54304.0,2.23484585]
[1725805202728,0.000815,54305.0,54304.0,2.23684585]
[1725805202934,0.000815,54305.0,54304.0,2.23484585]
[1725805203146,0.000815,54305.0,54304.0,1.72484585]
[1725805203359,0.000815,54305.0,54304.0,1.175778]
[1725805203801,0.000815,54305.0,54304.0,1.163408]
[1725805204011,0.000815,54305.0,54304.0,1.177408]
[1725805204220,0.000815,54305.0,54304.0,1.191408]
[1725805204637,0.000815,54305.0,54304.0,1.177408]
[1725805205533,0.000815,54305.0,54304.0,0.699974]
[1725805205747,0.000815,54305.0,54304.0,0.712974]
[1725805206588,0.000815,54305.0,54304.0,0.726974]
[1725805206806,0.000815,54305.0,54304.0,0.712974]
[1725805207015,0.000815,54305.0,54304.0,1.10427]
[1725805207225,0.000815,54305.0,54304.0,0.88810859]
[1725805207469,0.000815,54305.0,54304.0,0.91610859]
[1725805207931,0.000815,54305.0,54304.0,0.90210859]
[1725805207933,0.000815,54305.0,54304.0,1.27040459]
[1725805208151,0.000815,54305.0,54304.0,1.64870059]
[1725805208394,0.000815,54305.0,54304.0,1.66270059]
[1725805209052,0.000815,54305.0,54304.0,1.65070059]
[1725805209296,0.000815,54305.0,54304.0,0.345678]
[1725805209529,0.000815,54305.0,54304.0,0.713974]
[1725805209756,0.000815,54305.0,54304.0,0.699974]
[1725805210011,0.000815,54305.0,54304.0,0.713974]
[1725805210472,0.000815,54305.0,54304.0,0.727974]
[1725805210905,0.000815,54305.0,54304.0,0.8106012]
[1725805211110,0.000815,54305.0,54304.0,0.368678]
[1725805211347,0.000815,54305.0,54304.0,0.19853]
[1725805211602,0.01507641,54312.0,54304.0,0.19853]
[1725805211812,0.368236,54313.0,54305.0,0.023]
[1725805211813,0.184132,54309.0,54305.0,0.023]
[1725805212042,0.184132,54309.0,54306.0,0.0589828]
[1725805212286,0.184127,54311.0,54307.0,0.023]
[1725805212734,0.184131,54310.0,54307.0,0.023]
[1725805212973,0.184132,54309.0,54307.0,0.023]
[1725805213193,0.184132,54309.0,54308.0,0.02575128]
[1725805213444,0.184132,54309.0,54308.0,0.04875128]
[1725805214815,0.184132,54309.0,54308.0,0.06075128]
[1725805215032,0.184132,54309.0,54308.0,0.07175128]
[1725805216700,0.184132,54309.0,54308.0,0.023]
[1725805216701,1.504021,54309.0,54308.0,0.023]
[1725805216925,2.20920113,54309.0,54308.0,0.023]
[1725805217151,1.380015,54305.0,54304.0,0.00163]
[1725805217375,2.12050713,54305.0,54304.0,0.00163]
[1725805217602,1.659485,54299.0,54288.0,0.00163]
[1725805217835,2.17658713,54299.0,54288.0,0.00163]
[1725805218311,2.20345902,54299.0,54288.0,0.00163]
[1725805218743,2.23595902,54299.0,54288.0,0.00163]
[1725805218962,2.24095902,54299.0,54298.0,0.00263]
[1725805220349,2.37839537,54299.0,54298.0,0.00263]
[1725805220607,2.23359823,54299.0,54298.0,0.00263]
[1725805220808,2.37903535,54299.0,54298.0,0.00263]
[1725805221052,1.4883871,54299.0,54298.0,0.00163]
[1725805221302,1.381093,54299.0,54298.0,0.00263]
[1725805221518,1.06869689,54299.0,54298.0,0.00363]
[1725805221751,1.39030112,54299.0,54298.0,0.00263]
[1725805221980,1.52573824,54299.0,54298.0,0.00263]
[1725805222231,1.38830112,54299.0,54298.0,0.00163]
[1725805222448,1.52567942,54299.0,54298.0,0.00163]
[1725805222663,1.75663112,54299.0,54298.0,0.00163]
[1725805222880,2.26232639,54299.0,54298.0,0.00163]
[1725805223272,1.83403112,54299.0,54298.0,0.00163]
[1725805223480,1.97137187,54299.0,54298.0,0.00163]
[1725805223676,1.83403112,54299.0,54298.0,0.00163]
[1725805223860,1.9633638,54299.0,54298.0,0.00163]
[1725805224071,1.9633595,54299.0,54298.0,0.00163]
[1725805224709,1.9723595,54299.0,54298.0,0.00163]
[1725805225163,1.9633595,54299.0,54298.0,0.00163]
[1725805225376,1.83422304,54299.0,54298.0,0.00163]
[1725805225593,1.84422304,54299.0,54298.0,0.00163]
[1725805226029,1.83422304,54299.0,54298.0,0.00163]
[1725805226232,1.84322304,54299.0,54298.0,0.00163]
[1725805226922,1.83322304,54299.0,54298.0,0.00163]
[1725805227116,1.97954981,54299.0,54298.0,0.00263]
[1725805227560,1.97954981,54299.0,54298.0,0.00163]
[1725805227561,1.96154981,54299.0,54298.0,0.00163]
[1725805227785,1.96954981,54299.0,54298.0,0.00263]
[1725805228002,1.90014981,54299.0,54298.0,0.00363]
[1725805228483,1.86460077,54299.0,54298.0,0.00263]
[1725805228704,1.86460077,54299.0,54298.0,0.00363]
[1725805228935,1.87260077,54299.0,54298.0,0.00363]
[1725805229171,1.43402689,54299.0,54298.0,0.00363]
[1725805229391,1.50835326,54299.0,54298.0,0.00263]
[1725805229616,1.43102689,54299.0,54298.0,0.00263]
[1725805230114,1.42302689,54299.0,54298.0,0.00163]
[1725805230342,1.75594937,54299.0,54298.0,0.00163]
[1725805230568,1.86570675,54299.0,54298.0,0.00163]
[1725805231197,1.85670675,54299.0,54298.0,0.00163]
[1725805231419,1.86070675,54299.0,54298.0,0.00163]
[1725805231636,1.86170675,54299.0,54298.0,0.00163]
[1725805232099,1.85670675,54299.0,54298.0,0.00163]
[1725805232559,1.86170675,54299.0,54298.0,0.00163]
[1725805233237,1.86570675,54299.0,54298.0,0.00163]
[1725805234801,1.86397212,54299.0,54298.0,0.00163]
[1725805235685,1.75422785,54299.0,54298.0,0.00163]
[1725805235928,1.42702689,54299.0,54298.0,0.00163]
[1725805237485,1.42302689,54299.0,54298.0,0.00163]
[1725805237905,1.42002689,54299.0,54298.0,0.00163]
[1725805238119,1.42302689,54299.0,54298.0,0.00163]
[1725805238707,1.42002689,54299.0,54298.0,0.00163]
[1725805239054,1.42202689,54299.0,54298.0,0.00163]
[1725805239737,1.47688098,54299.0,54298.0,0.00163]
[1725805240377,1.42202689,54299.0,54298.0,0.00163]
[1725805243182,1.42002689,54299.0,54298.0,0.00163]
[1725805243396,1.85631201,54299.0,54298.0,0.00163]
[1725805243610,1.85631201,54299.0,54288.0,0.14733]
[1725805243611,1.289393,54289.0,54288.0,0.00163]
[1725805244737,1.389393,54289.0,54288.0,0.00163]
[1725805245164,1.390393,54289.0,54288.0,0.01063]
[1725805245616,1.389393,54289.0,54288.0,0.00163]
[1725805246069,1.389393,54289.0,54288.0,0.00263]
[1725805246411,1.390393,54289.0,54288.0,0.00963]
[1725805246627,1.389393,54289.0,54288.0,0.00263]
[1725805246820,1.389393,54289.0,54288.0,0.00463]
[1725805247228,1.020995,54289.0,54288.0,0.00463]
[1725805250211,0.05484524,54296.0,54288.0,0.00463]
[1725805250412,0.1,54295.0,54290.0,0.1383]
[1725805250623,0.28418,54295.0,54291.0,0.023]
[1725805250846,0.184183,54294.0,54291.0,0.023]
[1725805251060,0.1,54293.0,54291.0,0.023]
[1725805251268,0.1,54293.0,54291.0,0.207192]
[1725805252188,0.284186,54293.0,54291.0,0.023]
[1725805252609,0.1,54293.0,54291.0,0.023]
[1725805252823,0.184182,54294.0,54291.0,0.023]
[1725805253064,0.1,54293.0,54290.0,0.1383]
[1725805253278,0.184192,54291.0,54290.0,0.1383]
[1725805253485,0.552577,54291.0,54290.0,0.1383]
[1725805254699,0.553577,54291.0,54290.0,0.1463]
[1725805255562,0.553577,54291.0,54290.0,0.1543]
[1725805255771,0.554577,54291.0,54290.0,0.1543]
[1725805255983,0.553577,54291.0,54290.0,0.1463]
[1725805256413,0.554577,54291.0,54290.0,0.1543]
[1725805256832,0.553577,54291.0,54290.0,0.1463]
[1725805257048,0.554577,54291.0,54290.0,0.1533]
[1725805257472,0.60953337,54291.0,54290.0,0.1533]
[1725805257596,0.554577,54291.0,54290.0,0.1533]
[1725805257837,0.60953337,54291.0,54290.0,0.1533]
[1725805258273,0.554577,54291.0,54290.0,0.1533]
[1725805258438,0.60953337,54291.0,54290.0,0.1533]
[1725805259045,0.24114837,54291.0,54290.0,0.1533]
[1725805259272,0.002,54291.0,54290.0,0.1533]
[1725805259626,0.0570923,54291.0,54290.0,0.1533]
[1725805260459,0.08443456,54291.0,54290.0,0.1533]
[1725805261373,0.70766728,54291.0,54290.0,0.1533]
[1725805261604,0.51531998,54291.0,54290.0,0.1533]
[1725805261824,0.6256293,54291.0,54290.0,0.1533]
[1725805262489,0.51677551,54291.0,54290.0,0.1533]
[1725805264864,0.36278187,54291.0,54290.0,0.1533]
[1725805265070,0.66297779,54291.0,54290.0,0.1533]
[1725805265558,0.29459279,54291.0,54290.0,0.1533]
[1725805266050,0.184192,54291.0,54290.0,0.1533]
[1725805266283,0.08279845,54291.0,54290.0,0.1533]
[1725805266490,0.26699045,54291.0,54290.0,0.2057965]
[1725805266697,0.08279845,54291.0,54290.0,0.2057965]
[1725805266916,0.184192,54291.0,54290.0,0.2057965]
[1725805267365,0.11039035,54292.0,54290.0,0.1533]
[1725805267591,0.184185,54294.0,54293.0,0.1466]
[1725805267592,0.08279292,54294.0,54293.0,0.1466]
[1725805267843,0.13880294,54298.0,54293.0,0.1466]
[1725805267844,0.000815,54298.0,54297.0,0.552516]
[1725805268072,0.000815,54298.0,54297.0,1.06746]
[1725805268295,0.000815,54298.0,54297.0,1.458804]
[1725805269021,0.000815,54298.0,54297.0,0.1696]
[1725805269496,0.184983,54298.0,54297.0,0.1696]
[1725805269760,0.184983,54298.0,54297.0,0.1836]
[1725805269761,0.55432,54298.0,54297.0,0.1836]
[1725805270012,1.290994,54298.0,54294.0,0.0809]
[1725805270251,0.552567,54292.0,54291.0,0.1466]
[1725805270497,0.184189,54292.0,54291.0,0.1466]
[1725805272136,0.184185,54294.0,54291.0,0.1798431]
[1725805272369,0.184186,54293.0,54291.0,0.1798431]
[1725805272606,0.0551275,54296.0,54292.0,0.023]
[1725805272868,0.184176,54296.0,54292.0,0.207187]
[1725805273116,0.184176,54296.0,54293.0,0.07684221]
[1725805273357,0.184176,54296.0,54294.0,0.023]
[1725805273596,0.0551275,54297.0,54294.0,0.023]
[1725805273597,0.2392995,54297.0,54294.0,0.022]
[1725805273839,0.0551275,54296.0,54294.0,0.206181]
[1725805274083,0.000815,54298.0,54294.0,0.206181]
[1725805274084,0.0551275,54297.0,54295.0,0.08472443]
[1725805274555,0.001,54296.0,54295.0,0.08472443]
[1725805275486,0.05707849,54296.0,54295.0,0.08472443]
[1725805275745,0.05607849,54296.0,54295.0,0.08472443]
[1725805275972,0.05807849,54296.0,54295.0,0.09372443]
[1725805276444,0.002,54296.0,54295.0,0.09372443]
[1725805276704,0.002,54296.0,54295.0,0.25982443]
[1725805276930,0.001,54296.0,54295.0,0.44299943]
[1725805277163,0.002,54296.0,54295.0,0.45199943]
[1725805277390,0.001,54296.0,54295.0,0.44399943]
[1725805277596,0.001,54296.0,54295.0,0.45199943]
[1725805277858,0.002,54296.0,54295.0,0.45199943]
[1725805278544,0.001,54296.0,54295.0,0.44299943]
[1725805279236,0.05507621,54297.0,54295.0,0.43499943]
[1725805279461,0.05707621,54296.0,54295.0,0.45399943]
[1725805279647,0.05707621,54296.0,54295.0,0.44399943]
[1725805279648,0.001,54296.0,54295.0,0.44399943]
[1725805279911,0.05507621,54297.0,54295.0,0.44499943]
[1725805280130,0.001,54296.0,54295.0,0.44499943]
[1725805280354,0.001,54296.0,54295.0,0.44399943]
[1725805280615,0.001,54296.0,54295.0,0.81235743]
[1725805280860,0.000815,54298.0,54297.0,0.552516]
[1725805281084,0.000815,54298.0,54297.0,0.82147584]
[1725805281517,0.000815,54298.0,54297.0,0.82047584]
[1725805281979,0.000815,54298.0,54297.0,1.18881984]
[1725805282240,0.000815,54298.0,54297.0,1.19881984]
[1725805282467,0.001815,54298.0,54297.0,1.19881984]
[1725805282947,0.001815,54298.0,54297.0,1.56716384]
[1725805283182,0.000815,54298.0,54297.0,1.55616384]
[1725805283424,0.001815,54298.0,54297.0,1.57016384]
[1725805283661,0.002815,54298.0,54297.0,1.56716384]
[1725805283887,0.001815,54298.0,54297.0,1.56716384]
[1725805284113,0.000815,54298.0,54297.0,1.55616384]
[1725805285510,0.000815,54298.0,54297.0,1.57016384]
[1725805285770,0.000815,54298.0,54297.0,1.55616384]
[1725805286022,0.000815,54298.0,54297.0,1.57016384]
[1725805286271,0.000815,54298.0,54297.0,1.55616384]
[1725805286486,0.000815,54298.0,54297.0,1.72293569]
[1725805286729,0.000815,54298.0,54297.0,1.73693569]
[1725805286959,0.001815,54298.0,54297.0,1.73693569]
[1725805287200,0.001815,54298.0,54297.0,1.75093569]
[1725805287435,0.001815,54298.0,54297.0,1.58416384]
[1725805287667,0.001815,54298.0,54297.0,0.1941]
[1725805288411,0.000815,54298.0,54297.0,0.364272]
[1725805288868,0.000815,54298.0,54297.0,0.1571]
[1725805289099,0.184983,54298.0,54297.0,0.1571]
[1725805289557,0.185983,54298.0,54297.0,0.1711]
[1725805289770,0.185983,54298.0,54297.0,0.206628]
[1725805289995,0.185983,54298.0,54297.0,0.1711]
[1725805290225,0.185983,54298.0,54297.0,0.1941]
[1725805290665,0.185983,54298.0,54297.0,0.1171]
[1725805292025,0.55432,54298.0,54297.0,0.1171]
[1725805292376,0.922657,54298.0,54297.0,0.028]
[1725805292548,0.97768098,54298.0,54297.0,0.028]
[1725805292787,0.922657,54298.0,54297.0,0.028]
[1725805293028,0.184179,54295.0,54294.0,0.00163]
[1725805293284,0.552537,54295.0,54294.0,0.00163]
[1725805294460,1.289253,54295.0,54294.0,0.00163]
[1725805294697,1.37777438,54295.0,54294.0,0.01163]
[1725805294981,1.40628898,54295.0,54294.0,0.01763]
[1725805295469,1.322753,54295.0,54294.0,0.01163]
[1725805295711,1.290253,54295.0,54294.0,0.01163]
[1725805296448,1.291253,54295.0,54294.0,0.02163]
[1725805296676,1.290253,54295.0,54294.0,0.01163]
[1725805296919,1.290253,54295.0,54294.0,0.02163]
[1725805297159,1.291253,54295.0,54294.0,0.02163]
[1725805297624,1.31768839,54295.0,54294.0,0.02163]
[1725805298756,1.6465677,54295.0,54294.0,0.02163]
[1725805298975,1.75661567,54295.0,54294.0,0.02163]
[1725805299231,1.8574677,54295.0,54294.0,0.02163]
[1725805299471,1.88633677,54295.0,54294.0,0.02163]
[1725805300287,2.04562505,54295.0,54294.0,0.01163]
[1725805300545,1.88051517,54295.0,54294.0,0.01163]
[1725805300761,1.88551517,54295.0,54294.0,0.01163]
[1725805301415,1.88051517,54295.0,54294.0,0.01163]
[1725805301627,1.88451517,54295.0,54294.0,0.00163]